bitfinex/quotes_BTCUSD_20241011
["timestamp","ask_amount","ask_price","bid_price","bid_amount"]
[1728664214219,0.002,62295.0,62293.0,0.24075694]
[1728664214479,0.005,62304.0,62293.0,0.24075694]
[1728664214480,0.002,62296.0,62293.0,0.24075694]
[1728664214767,0.005,62304.0,62294.0,0.01601879]
[1728664215263,0.005,62304.0,62295.0,0.04955201]
[1728664215742,0.001,62304.0,62295.0,0.04955201]
[1728664216015,0.001,62304.0,62296.0,0.27847508]
[1728664216226,0.001,62304.0,62301.0,0.27847508]
[1728664216438,0.001,62304.0,62302.0,0.04955201]
[1728664216664,0.00282,62318.0,62302.0,0.04955201]
[1728664216879,0.003,62304.0,62302.0,0.04955201]
[1728664217098,0.003,62304.0,62303.0,0.24075694]
[1728664217351,0.002,62314.0,62303.0,0.29030895]
[1728664217569,0.002,62314.0,62304.0,0.04955201]
[1728664217987,0.002,62314.0,62304.0,0.05836275]
[1728664218194,0.002,62314.0,62305.0,0.04955201]
[1728664218641,0.002,62314.0,62306.0,0.00878673]
[1728664218860,0.00082,62318.0,62306.0,0.00878673]
[1728664218861,0.002,62313.0,62307.0,0.04955201]
[1728664219073,0.002,62314.0,62307.0,0.04955201]
[1728664219291,0.002,62308.0,62307.0,0.05833086]
[1728664219715,0.002,62312.0,62307.0,0.00877885]
[1728664219934,0.002,62313.0,62306.0,0.001]
[1728664220156,0.0299597,62312.0,62311.0,0.24075694]
[1728664220367,0.0299597,62312.0,62307.0,0.00877885]
[1728664220579,0.002,62312.0,62311.0,0.0087473]
[1728664220796,0.01698375,62312.0,62307.0,0.001]
[1728664221009,0.002,62312.0,62307.0,0.001]
[1728664221249,0.002,62312.0,62308.0,0.00877096]
[1728664221700,0.006,62312.0,62307.0,0.001]
[1728664221915,0.006,62312.0,62309.0,0.00876307]
[1728664222128,0.02997426,62311.0,62304.0,0.1875]
[1728664222349,0.006,62312.0,62310.0,0.00875519]
[1728664222583,0.006,62312.0,62304.0,0.1875]
[1728664222841,0.006,62312.0,62311.0,0.0087473]
[1728664223060,0.01598947,62312.0,62304.0,0.1875]
[1728664223273,0.001,62312.0,62311.0,0.00874209]
[1728664223514,0.001,62312.0,62304.0,0.1875]
[1728664223515,0.01999122,62312.0,62304.0,0.1875]
[1728664223748,0.005,62312.0,62305.0,0.04957154]
[1728664223959,0.014,62312.0,62311.0,0.001]
[1728664224178,0.20594895,62312.0,62311.0,0.001]
[1728664224397,0.20594895,62312.0,62311.0,0.05057525]
[1728664224398,0.28683731,62312.0,62311.0,0.05057525]
[1728664224618,0.28683731,62312.0,62311.0,0.32905033]
[1728664224619,0.0859054,62312.0,62311.0,0.32905033]
[1728664224828,0.001,62312.0,62311.0,0.33752166]
[1728664225299,0.001,62312.0,62311.0,0.05904658]
[1728664225520,0.001,62312.0,62311.0,0.07487945]
[1728664225742,0.02414306,62316.0,62314.0,0.27847508]
[1728664225958,0.11984947,62323.0,62314.0,0.27847508]
[1728664225959,0.0719054,62325.0,62315.0,0.04957525]
[1728664226167,0.0739054,62328.0,62315.0,0.05900862]
[1728664226389,0.0739054,62328.0,62316.0,0.04957525]
[1728664226642,0.0719054,62326.0,62316.0,0.04957525]
[1728664226865,0.0719054,62327.0,62319.0,0.24075694]
[1728664227081,0.002,62324.0,62319.0,0.24075694]
[1728664227294,0.00082,62329.0,62319.0,0.24075694]
[1728664227295,0.0727254,62329.0,62319.0,0.24075694]
[1728664227503,0.003,62328.0,62320.0,0.00939395]
[1728664228997,0.00482,62329.0,62320.0,0.00939395]
[1728664229212,0.003,62324.0,62320.0,0.00939395]
[1728664229629,0.00082,62329.0,62321.0,0.1906]
[1728664229845,0.00082,62329.0,62321.0,0.19998607]
[1728664230051,0.004,62328.0,62321.0,0.19998607]
[1728664230480,0.002,62327.0,62321.0,0.19998607]
[1728664231330,0.00282,62329.0,62321.0,0.19998607]
[1728664231567,0.00082,62329.0,62321.0,0.36121008]
[1728664231790,0.00082,62329.0,62323.0,0.27847508]
[1728664231996,0.00082,62329.0,62323.0,0.43969909]
[1728664232184,0.005,62328.0,62324.0,0.00934448]
[1728664232857,0.00082,62329.0,62326.0,0.24075694]
[1728664233105,0.001,62329.0,62327.0,0.27847508]
[1728664233313,0.001,62329.0,62328.0,0.27847508]
[1728664233529,0.002,62347.0,62328.0,0.45551148]
[1728664233741,0.26125458,62354.0,62336.0,0.27847508]
[1728664233742,0.002,62348.0,62336.0,0.27847508]
[1728664234016,0.002,62348.0,62329.0,0.16443255]
[1728664234017,0.002,62348.0,62332.0,0.27847508]
[1728664234268,0.002,62343.0,62337.0,0.24996337]
[1728664234523,0.320749,62355.0,62337.0,0.40198095]
[1728664234763,0.325742,62356.0,62337.0,0.40198095]
[1728664234967,0.003,62348.0,62338.0,0.00919855]
[1728664235170,0.160377,62353.0,62338.0,0.00919855]
[1728664235406,0.001,62347.0,62338.0,0.00919855]
[1728664236032,0.005,62356.0,62346.0,0.24075694]
[1728664236247,0.005,62356.0,62339.0,0.2707]
[1728664236248,0.008,62348.0,62339.0,0.2707]
[1728664236457,0.008,62348.0,62347.0,0.24988459]
[1728664236683,0.008,62348.0,62347.0,0.16122401]
[1728664236908,0.160349,62364.0,62347.0,0.17035166]
[1728664237114,0.004,62348.0,62347.0,0.17035166]
[1728664237335,0.160352,62363.0,62347.0,0.17035166]
[1728664237549,0.3207,62364.0,62347.0,0.17035166]
[1728664237750,0.001,62348.0,62347.0,0.17522401]
[1728664237964,0.160351,62363.0,62347.0,0.16122401]
[1728664238185,0.320695,62365.0,62347.0,0.17731983]
[1728664238391,0.014,62348.0,62347.0,0.17831983]
[1728664238601,0.160351,62363.0,62347.0,0.17731983]
[1728664238805,0.160351,62363.0,62347.0,0.18644748]
[1728664239021,0.160351,62363.0,62347.0,0.17731983]
[1728664239273,0.006,62348.0,62347.0,0.17731983]
[1728664239704,0.006,62348.0,62347.0,0.18644748]
[1728664239907,0.160362,62359.0,62347.0,0.02622347]
[1728664240117,0.27847508,62360.0,62347.0,0.02522347]
[1728664240299,0.16036,62360.0,62349.0,0.24075694]
[1728664240512,0.320721,62360.0,62349.0,0.24075694]
[1728664240722,0.005,62361.0,62349.0,0.24075694]
[1728664240950,0.160352,62363.0,62356.0,0.24075694]
[1728664241166,0.425699,62364.0,62349.0,0.24075694]
[1728664241167,0.105,62364.0,62349.0,0.24075694]
[1728664241373,0.425701,62364.0,62357.0,0.0090489]
[1728664241597,0.006,62360.0,62349.0,0.24075694]
[1728664241847,0.325702,62364.0,62356.0,0.24075694]
[1728664241848,0.160358,62361.0,62356.0,0.24075694]
[1728664242050,0.160358,62361.0,62349.0,0.24075694]
[1728664242051,0.160358,62361.0,62350.0,0.00910402]
[1728664242257,0.160358,62361.0,62357.0,0.0090489]
[1728664242466,0.160362,62359.0,62349.0,0.24075694]
[1728664242681,0.320706,62363.0,62349.0,0.24075694]
[1728664242893,0.160359,62360.0,62350.0,0.00910402]
[1728664243108,0.169359,62360.0,62356.0,0.011]
[1728664243530,0.169359,62360.0,62349.0,0.24075694]
[1728664243531,0.160359,62360.0,62349.0,0.24075694]
[1728664243740,0.006,62359.0,62349.0,0.24075694]
[1728664243950,0.008,62359.0,62350.0,0.00910402]
[1728664244416,0.168362,62359.0,62356.0,0.014]
[1728664244639,0.006,62359.0,62350.0,0.00910402]
[1728664244861,0.006,62359.0,62349.0,0.24075694]
[1728664245132,0.160366,62358.0,62351.0,0.00909615]
[1728664245385,0.008,62359.0,62350.0,0.00910402]
[1728664245601,0.002,62359.0,62352.0,0.00908827]
[1728664245803,0.002,62359.0,62351.0,0.00962455]
[1728664246014,0.002,62359.0,62353.0,0.0096088]
[1728664246162,0.002,62359.0,62352.0,0.00961668]
[1728664246373,0.00082,62361.0,62349.0,0.24075694]
[1728664246577,0.007,62359.0,62353.0,0.0096088]
[1728664246784,0.160364,62358.0,62356.0,0.014]
[1728664247105,0.008,62359.0,62356.0,0.014]
[1728664247492,0.167362,62359.0,62349.0,0.24075694]
[1728664247869,0.008,62359.0,62352.0,0.014]
[1728664248076,0.008,62359.0,62353.0,0.00957923]
[1728664248077,0.001,62359.0,62353.0,0.00957923]
[1728664248522,0.001,62359.0,62349.0,0.40114294]
[1728664248752,0.3481404,62360.0,62354.0,0.00957136]
[1728664248989,0.3481404,62360.0,62349.0,0.40114294]
[1728664249218,0.001,62359.0,62355.0,0.00956348]
[1728664249470,0.002,62359.0,62356.0,0.014]
[1728664249706,0.001,62359.0,62356.0,0.014]
[1728664249934,0.3511404,62360.0,62349.0,0.40114294]
[1728664250177,0.1937814,62360.0,62357.0,0.00954774]
[1728664250647,0.1937814,62360.0,62349.0,0.24075694]
[1728664250892,0.001,62359.0,62356.0,0.014]
[1728664251635,0.002,62359.0,62356.0,0.014]
[1728664251840,0.001,62359.0,62350.0,0.160384]
[1728664252123,0.001,62359.0,62351.0,0.00959499]
[1728664252584,0.1877814,62360.0,62351.0,0.00959499]
[1728664252811,0.3481424,62360.0,62351.0,0.00959499]
[1728664253037,0.007,62359.0,62351.0,0.00959499]
[1728664253255,0.007,62359.0,62357.0,0.014]
[1728664253491,0.007,62359.0,62349.0,0.40114294]
[1728664253728,0.007,62359.0,62351.0,5e-05]
[1728664254175,0.1877814,62356.0,62352.0,0.00958711]
[1728664256017,0.1877814,62356.0,62352.0,0.01158711]
[1728664256246,0.19653805,62355.0,62352.0,0.01158711]
[1728664256507,0.19653805,62355.0,62352.0,0.016]
[1728664256508,0.3531584,62353.0,62352.0,0.016]
[1728664256733,0.1877814,62353.0,62352.0,0.01764]
[1728664256950,0.3481584,62353.0,62352.0,0.01764]
[1728664257386,0.3481584,62353.0,62352.0,0.00164]
[1728664257836,0.3491584,62353.0,62352.0,0.01764]
[1728664258690,0.001,62353.0,62352.0,0.01764]
[1728664259747,0.001,62353.0,62352.0,0.178019]
[1728664260155,0.001,62353.0,62352.0,0.01764]
[1728664260363,0.001,62353.0,62352.0,0.178019]
[1728664260593,0.001,62353.0,62352.0,0.01764]
[1728664261064,0.001,62353.0,62352.0,0.178019]
[1728664264103,0.00082,62359.0,62358.0,0.160364]
[1728664264312,0.00082,62359.0,62358.0,0.50936941]
[1728664264525,0.00082,62359.0,62358.0,0.32158801]
[1728664265129,0.00082,62359.0,62358.0,0.37110618]
[1728664265330,0.00582,62359.0,62358.0,0.32158801]
[1728664266445,0.1877814,62379.0,62358.0,0.39855112]
[1728664266644,0.07852,62381.0,62365.0,0.0805]
[1728664266645,0.00082,62381.0,62365.0,0.0805]
[1728664266891,0.00082,62381.0,62366.0,0.16122401]
[1728664267094,0.00082,62381.0,62372.0,0.160327]
[1728664267300,0.00082,62381.0,62371.0,0.32066]
[1728664267526,0.00082,62381.0,62372.0,0.160326]
[1728664267806,0.00082,62381.0,62374.0,0.24075694]
[1728664267807,0.1877814,62380.0,62374.0,0.24075694]
[1728664268260,0.00882,62381.0,62376.0,0.160316]
[1728664268484,0.00882,62381.0,62378.0,0.160311]
[1728664268485,0.00082,62381.0,62378.0,0.160311]
[1728664268742,0.00582,62381.0,62376.0,0.320632]
[1728664268981,0.00582,62381.0,62380.0,0.160307]
[1728664269648,0.00011041,62400.0,62390.0,0.1877814]
[1728664269884,0.00011041,62400.0,62381.0,0.1]
[1728664269885,0.00011041,62400.0,62396.0,0.32053]
[1728664270099,0.000819,62402.0,62393.0,0.160273]
[1728664270332,0.000819,62402.0,62395.0,0.160267]
[1728664270542,0.1877814,62401.0,62393.0,0.16122401]
[1728664270752,0.1877814,62401.0,62395.0,0.24075694]
[1728664271162,0.001,62400.0,62396.0,0.007]
[1728664271622,0.1877814,62401.0,62395.0,0.24075694]
[1728664271864,0.1877814,62401.0,62393.0,0.00924687]
[1728664271865,0.1877814,62397.0,62393.0,0.00924687]
[1728664272078,0.1877814,62397.0,62395.0,0.24075694]
[1728664272289,0.3480454,62397.0,62388.0,0.24075694]
[1728664272513,0.3480454,62397.0,62381.0,0.56136594]
[1728664272514,0.160264,62397.0,62396.0,0.01618621]
[1728664272766,0.242864,62397.0,62396.0,0.01618621]
[1728664273442,0.59186941,62397.0,62396.0,0.01618621]
[1728664273672,0.78465081,62397.0,62396.0,0.01618621]
[1728664274096,0.77965081,62397.0,62396.0,0.03018621]
[1728664274280,0.87965081,62397.0,62396.0,0.03018621]
[1728664274520,0.87965081,62397.0,62396.0,0.03418621]
[1728664274770,0.87965081,62397.0,62396.0,0.018]
[1728664277114,0.69186941,62397.0,62396.0,0.018]
[1728664277556,0.86086941,62397.0,62396.0,0.018]
[1728664277776,0.87965081,62397.0,62396.0,0.018]
[1728664277992,0.69186941,62397.0,62396.0,0.018]
[1728664278219,0.87965081,62397.0,62396.0,0.018]
[1728664279367,0.1,62400.0,62396.0,0.018]
[1728664279600,0.000819,62402.0,62396.0,0.018]
[1728664279827,0.1877814,62400.0,62396.0,0.018]
[1728664280322,0.160259,62399.0,62397.0,0.24075694]
[1728664280514,0.160258,62399.0,62397.0,0.24075694]
[1728664280713,0.160261,62398.0,62397.0,0.24075694]
[1728664280920,0.320519,62399.0,62396.0,0.014]
[1728664281124,0.320519,62399.0,62396.0,0.015638]
[1728664281335,0.160264,62397.0,62396.0,0.001638]
[1728664281965,0.3480454,62397.0,62396.0,0.001638]
[1728664282577,0.320519,62399.0,62396.0,0.001638]
[1728664282578,0.16026,62399.0,62396.0,0.001638]
[1728664282807,0.001,62399.0,62396.0,0.001638]
[1728664283003,0.160262,62398.0,62396.0,0.001638]
[1728664283214,0.001,62399.0,62396.0,0.004638]
[1728664283420,0.160264,62397.0,62396.0,0.004638]
[1728664283667,0.160263,62398.0,62396.0,0.004638]
[1728664284140,0.006,62397.0,62396.0,0.005638]
[1728664284542,0.006,62397.0,62396.0,0.002638]
[1728664285512,0.006,62397.0,62396.0,0.005638]
[1728664285755,0.000819,62400.0,62396.0,0.005638]
[1728664285976,0.000819,62400.0,62396.0,0.006638]
[1728664286197,0.1877814,62399.0,62396.0,0.006638]
[1728664286667,0.1877814,62399.0,62396.0,0.001638]
[1728664286906,0.1877814,62399.0,62396.0,0.001]
[1728664286907,0.01,62397.0,62396.0,0.001]
[1728664287403,0.1937814,62397.0,62395.0,0.01579129]
[1728664287633,0.1877814,62397.0,62396.0,0.003]
[1728664287895,0.1877814,62397.0,62396.0,0.24075694]
[1728664288127,0.000819,62400.0,62396.0,0.24075694]
[1728664288360,0.004,62397.0,62396.0,0.001]
[1728664288584,0.1917814,62397.0,62396.0,0.001]
[1728664289512,0.3520454,62397.0,62396.0,0.001]
[1728664289735,0.3540454,62397.0,62396.0,0.001]
[1728664289954,0.3540454,62397.0,62396.0,0.003]
[1728664290489,0.3540454,62397.0,62396.0,0.001]
[1728664290703,0.5458268,62397.0,62396.0,0.002]
[1728664290926,0.3580454,62397.0,62396.0,0.002]
[1728664292274,0.1977814,62397.0,62396.0,0.002]
[1728664292469,0.1977814,62397.0,62396.0,0.003638]
[1728664294401,0.01,62397.0,62396.0,0.003638]
[1728664295229,0.01,62397.0,62396.0,0.163904]
[1728664296327,0.006,62397.0,62396.0,0.162904]
[1728664296577,0.000819,62400.0,62399.0,0.160258]
[1728664297044,0.000819,62402.0,62400.0,0.049181]
[1728664297278,0.000819,62402.0,62401.0,0.354653]
[1728664299518,0.000819,62402.0,62401.0,0.355653]
[1728664299735,0.004819,62402.0,62401.0,0.355653]
[1728664301431,0.004819,62402.0,62401.0,0.356653]
[1728664301857,0.004819,62402.0,62401.0,0.1964]
[1728664302039,0.000819,62402.0,62401.0,0.1944]
[1728664302398,0.006819,62402.0,62401.0,0.357653]
[1728664302606,0.000819,62402.0,62401.0,0.357653]
[1728664302820,0.000819,62402.0,62401.0,0.354653]
[1728664303026,0.007819,62402.0,62401.0,0.1954]
[1728664303258,0.000819,62402.0,62401.0,0.356653]
[1728664304128,0.009819,62402.0,62401.0,0.357653]
[1728664304780,0.009819,62402.0,62401.0,0.003]
[1728664305035,0.009819,62402.0,62401.0,0.001]
[1728664305252,0.009819,62402.0,62401.0,0.002]
[1728664312675,0.009819,62402.0,62401.0,0.162253]
[1728664313353,0.00082,62422.0,62411.0,0.1877814]
[1728664313569,0.00082,62422.0,62412.0,0.34602401]
[1728664313780,0.1877814,62415.0,62406.0,0.0775]
[1728664313991,0.1877814,62415.0,62408.0,0.24075694]
[1728664314620,0.1877814,62415.0,62408.0,0.40099094]
[1728664315047,0.1877814,62415.0,62408.0,0.24075694]
[1728664315467,0.1887814,62415.0,62411.0,0.005]
[1728664315857,0.1887814,62415.0,62408.0,0.24875694]
[1728664316098,0.1887814,62415.0,62408.0,0.008]
[1728664316099,0.1877814,62409.0,62408.0,0.008]
[1728664316524,0.1877814,62409.0,62400.0,0.29157794]
[1728664316737,0.160235,62408.0,62407.0,0.24075694]
[1728664316946,0.320467,62409.0,62400.0,0.29157794]
[1728664317152,0.1877814,62401.0,62400.0,0.29157794]
[1728664317586,0.1877814,62401.0,62400.0,0.30745725]
[1728664319055,0.1907814,62401.0,62400.0,0.30745725]
[1728664319861,0.1937814,62401.0,62400.0,0.30845725]
[1728664320160,0.1937814,62401.0,62400.0,0.06770031]
[1728664322870,0.006,62401.0,62400.0,0.06770031]
[1728664323077,0.006,62401.0,62400.0,0.06670031]
[1728664323311,0.1907814,62401.0,62400.0,0.06670031]
[1728664323522,0.1907814,62401.0,62400.0,0.07370031]
[1728664323731,0.1907814,62401.0,62400.0,0.06670031]
[1728664323935,0.1877814,62401.0,62400.0,0.06670031]
[1728664324148,0.1917814,62401.0,62400.0,0.06770031]
[1728664324280,0.1917814,62401.0,62400.0,0.07070031]
[1728664324721,0.1917814,62401.0,62400.0,0.06770031]
[1728664325129,0.1977814,62401.0,62400.0,0.06870031]
[1728664325496,0.1977814,62401.0,62400.0,0.07937559]
[1728664325697,0.01,62401.0,62400.0,0.07937559]
[1728664325904,0.004,62401.0,62400.0,0.07837559]
[1728664326299,0.004,62401.0,62400.0,0.07737559]
[1728664326453,0.1877814,62404.0,62400.0,0.07737559]
[1728664326657,0.012,62401.0,62400.0,0.06670031]
[1728664327073,0.016,62401.0,62400.0,0.06670031]
[1728664327722,0.012,62401.0,62400.0,0.06670031]
[1728664327869,0.016,62401.0,62400.0,0.06670031]
[1728664329324,0.016,62401.0,62400.0,0.07725894]
[1728664329758,0.016,62401.0,62400.0,0.06670031]
[1728664330167,0.016,62401.0,62400.0,0.07725894]
[1728664330379,0.320471,62409.0,62400.0,0.07725894]
[1728664330380,0.000819,62412.0,62411.0,0.24075694]
[1728664330589,0.11989527,62420.0,62411.0,0.24075694]
[1728664330590,0.07193716,62433.0,62411.0,0.42782401]
[1728664330808,0.320352,62432.0,62412.0,0.34900541]
[1728664331072,0.320364,62429.0,62412.0,0.16122401]
[1728664331289,0.320364,62429.0,62411.0,0.1874]
[1728664331290,0.5089944,62424.0,62411.0,0.1874]
[1728664331504,0.3487974,62424.0,62412.0,0.24075694]
[1728664331711,0.0149865,62421.0,62412.0,0.24075694]
[1728664331934,0.160198,62423.0,62412.0,0.24075694]
[1728664332152,0.01498647,62421.0,62412.0,0.24075694]
[1728664332378,0.161022,62422.0,62412.0,0.24075694]
[1728664332592,0.00082,62422.0,62412.0,0.24075694]
[1728664333005,0.00082,62422.0,62421.0,0.24075694]
[1728664333223,0.00082,62424.0,62421.0,0.43312401]
[1728664333443,0.320278,62446.0,62424.0,0.160194]
[1728664333897,0.160963,62444.0,62424.0,0.32141801]
[1728664334122,0.160963,62444.0,62424.0,0.33237641]
[1728664334123,8.97172034,62425.0,62424.0,0.33237641]
[1728664334339,8.95511682,62425.0,62424.0,0.32141801]
[1728664335193,8.95511682,62425.0,62424.0,0.32241801]
[1728664335609,8.93843235,62425.0,62424.0,0.32241801]
[1728664336682,8.93843235,62425.0,62424.0,0.32141801]
[1728664336893,8.93843235,62425.0,62424.0,0.32341801]
[1728664337314,8.93843235,62425.0,62424.0,0.32141801]
[1728664337768,8.93843235,62425.0,62401.0,0.09487338]
[1728664337769,0.023,62406.0,62401.0,0.09487338]
[1728664337983,0.023,62406.0,62387.0,0.18284632]
[1728664337984,0.1603,62383.0,62382.0,0.02]
[1728664338213,0.3755628,62383.0,62379.0,0.01597909]
[1728664338470,0.160303,62382.0,62379.0,0.01597909]
[1728664338696,0.1877814,62383.0,62354.0,0.00164]
[1728664338923,0.1877814,62371.0,62354.0,0.00164]
[1728664340416,0.1877814,62371.0,62364.0,0.203]
[1728664341111,0.1877814,62371.0,62369.0,0.160334]
[1728664341351,0.1877814,62371.0,62366.0,0.320685]
[1728664341352,0.1877814,62371.0,62370.0,0.160333]
[1728664342857,0.1887814,62371.0,62370.0,0.01590525]
[1728664343272,0.1877814,62371.0,62370.0,0.01590525]
[1728664343693,0.1897814,62371.0,62370.0,0.01590525]
[1728664346209,0.002,62371.0,62370.0,0.01590525]
[1728664346822,0.002,62371.0,62370.0,0.17123825]
[1728664349110,0.002,62371.0,62370.0,0.01090525]
[1728664349316,0.002,62371.0,62370.0,0.17123825]
[1728664349525,0.002,62371.0,62370.0,0.01090525]
[1728664349734,0.002,62371.0,62370.0,0.17123825]
[1728664350800,0.002,62371.0,62370.0,0.17287825]
[1728664351466,0.002,62371.0,62370.0,0.16787825]
[1728664353183,0.002,62371.0,62370.0,0.00754525]
[1728664353415,0.002,62371.0,62370.0,0.16787825]
[1728664353634,0.002,62371.0,62370.0,0.00754525]
[1728664353864,0.002,62371.0,62370.0,0.16787825]
[1728664354915,0.002,62371.0,62370.0,0.00754525]
[1728664355360,0.002,62371.0,62370.0,0.16787825]
[1728664355582,0.002,62371.0,62370.0,0.00754525]
[1728664356276,0.002,62371.0,62370.0,0.16787825]
[1728664356509,0.002,62371.0,62370.0,0.00754525]
[1728664356727,0.002,62371.0,62370.0,0.16787825]
[1728664357368,0.002,62371.0,62370.0,0.00754525]
[1728664357811,0.002,62371.0,62370.0,0.16787825]
[1728664358021,0.002,62371.0,62370.0,0.00754525]
[1728664359076,0.002,62371.0,62370.0,0.16787825]
[1728664359288,0.002,62371.0,62370.0,0.16287825]
[1728664361186,0.002,62371.0,62370.0,0.00254525]
[1728664361402,0.002,62371.0,62370.0,0.16287825]
[1728664361831,0.002,62371.0,62370.0,0.00254525]
[1728664362668,0.002,62371.0,62370.0,0.00200654]
[1728664365555,0.002,62371.0,62370.0,0.16233954]
[1728664369339,0.160303,62382.0,62372.0,0.160327]
[1728664369791,0.160303,62382.0,62375.0,0.24049831]
[1728664370662,0.320599,62384.0,62375.0,0.24049831]
[1728664370663,0.1603,62383.0,62375.0,0.24049831]
[1728664371334,0.160303,62382.0,62375.0,0.24049831]
[1728664371589,0.160298,62384.0,62375.0,0.24049831]
[1728664371797,0.403091,62385.0,62375.0,0.24049831]
[1728664372011,0.1603,62383.0,62375.0,0.24349831]
[1728664372460,0.1603,62383.0,62375.0,0.24049831]
[1728664372682,0.1603,62383.0,62375.0,0.24249831]
[1728664373334,0.00082,62382.0,62375.0,0.24249831]
[1728664373993,0.00082,62382.0,62375.0,0.24049831]
[1728664374476,0.161125,62382.0,62375.0,0.24349831]
[1728664374704,0.00082,62382.0,62375.0,0.24349831]
[1728664374941,0.161124,62382.0,62375.0,0.24049831]
[1728664375172,0.161123,62382.0,62375.0,0.24449831]
[1728664375394,0.00082,62382.0,62375.0,0.24449831]
[1728664375621,0.160306,62381.0,62375.0,0.24449831]
[1728664375842,0.00082,62382.0,62375.0,0.24449831]
[1728664376750,0.161123,62382.0,62375.0,0.24449831]
[1728664376938,0.00082,62382.0,62375.0,0.24449831]
[1728664377145,0.160308,62380.0,62375.0,0.24449831]
[1728664377376,0.00082,62382.0,62375.0,0.24449831]
[1728664377612,0.160306,62381.0,62375.0,0.24049831]
[1728664378068,0.160308,62380.0,62375.0,0.24549831]
[1728664378282,0.160305,62381.0,62375.0,0.24549831]
[1728664378511,0.160306,62381.0,62375.0,0.24549831]
[1728664378871,0.160306,62381.0,62375.0,0.24049831]
[1728664379275,0.002,62380.0,62375.0,0.24449831]
[1728664379746,0.002,62380.0,62375.0,0.24049831]
[1728664379965,0.002,62380.0,62375.0,0.25149831]
[1728664380187,0.002,62380.0,62375.0,0.24049831]
[1728664380615,0.002,62380.0,62375.0,0.24449831]
[1728664381236,0.161123,62382.0,62375.0,0.24449831]
[1728664381433,0.161123,62382.0,62375.0,0.24949831]
[1728664381861,0.00082,62382.0,62375.0,0.24449831]
[1728664382134,0.160306,62381.0,62375.0,0.24449831]
[1728664382351,0.00082,62382.0,62375.0,0.24449831]
[1728664382352,0.002,62380.0,62375.0,0.24049831]
[1728664382576,0.162308,62380.0,62375.0,0.25049831]
[1728664382808,0.00082,62382.0,62375.0,0.25049831]
[1728664383009,0.160306,62381.0,62375.0,0.24449831]
[1728664383214,0.160306,62381.0,62375.0,0.25549831]
[1728664383421,0.160306,62381.0,62375.0,0.24449831]
[1728664383422,0.04763708,62379.0,62375.0,0.24449831]
[1728664383645,0.04763708,62380.0,62375.0,0.24449831]
[1728664383846,0.04763708,62380.0,62375.0,0.24849831]
[1728664384224,0.04763708,62378.0,62375.0,0.24849831]
[1728664384541,0.04763708,62380.0,62375.0,0.24849831]
[1728664384947,0.04808976,62378.0,62375.0,0.24049831]
[1728664385317,0.05008976,62380.0,62375.0,0.25149831]
[1728664385521,0.05008976,62380.0,62375.0,0.24049831]
[1728664385728,0.04808976,62380.0,62375.0,0.24049831]
[1728664385941,0.002,62378.0,62375.0,0.24449831]
[1728664386390,0.04808976,62378.0,62375.0,0.24449831]
[1728664386805,0.07213464,62380.0,62375.0,0.24449831]
[1728664386806,0.05008976,62380.0,62375.0,0.24449831]
[1728664387248,0.05008976,62380.0,62375.0,0.24049831]
[1728664388116,0.04808976,62378.0,62375.0,0.24049831]
[1728664388371,0.07413464,62380.0,62375.0,0.24049831]
[1728664388372,0.05008976,62380.0,62375.0,0.24049831]
[1728664388594,0.04808976,62380.0,62375.0,0.24449831]
[1728664388832,0.05008976,62378.0,62375.0,0.24449831]
[1728664389084,0.002,62378.0,62375.0,0.24449831]
[1728664389283,0.04808778,62380.0,62375.0,0.24049831]
[1728664389493,0.04808778,62378.0,62375.0,0.24049831]
[1728664389730,0.04808778,62378.0,62375.0,0.24449831]
[1728664389962,0.04808778,62378.0,62375.0,0.24049831]
[1728664390402,0.04808778,62378.0,62375.0,0.24449831]
[1728664391044,0.05008778,62380.0,62375.0,0.24449831]
[1728664391511,0.04808778,62378.0,62375.0,0.24449831]
[1728664391716,0.04808778,62379.0,62375.0,0.24449831]
[1728664391975,0.002,62378.0,62375.0,0.24449831]
[1728664392184,0.002,62378.0,62375.0,0.24049831]
[1728664392396,0.002,62378.0,62375.0,0.24449831]
[1728664392621,0.04808778,62381.0,62375.0,0.24049831]
[1728664393040,0.002,62379.0,62375.0,0.24449831]
[1728664393247,0.002,62379.0,62375.0,0.24049831]
[1728664393457,0.04808778,62381.0,62375.0,0.24049831]
[1728664393685,0.04808778,62380.0,62375.0,0.24449831]
[1728664393908,0.00082,62382.0,62375.0,0.24449831]
[1728664394142,0.04809178,62381.0,62375.0,0.24449831]
[1728664394799,0.04809178,62380.0,62375.0,0.24549831]
[1728664395049,0.04891178,62382.0,62375.0,0.24949831]
[1728664395265,0.00082,62382.0,62375.0,0.24949831]
[1728664395467,0.00082,62382.0,62375.0,0.24549831]
[1728664395697,0.161123,62382.0,62375.0,0.24049831]
[1728664395906,0.002,62380.0,62375.0,0.25149831]
[1728664396324,0.002,62380.0,62375.0,0.24049831]
[1728664396540,0.04809178,62381.0,62375.0,0.24049831]
[1728664396761,0.04809178,62381.0,62375.0,0.25049831]
[1728664396969,0.00082,62382.0,62375.0,0.25049831]
[1728664397875,0.04809178,62381.0,62375.0,0.25449831]
[1728664398096,0.00082,62382.0,62375.0,0.25449831]
[1728664398537,0.00082,62382.0,62375.0,0.24449831]
[1728664398763,0.04809178,62381.0,62375.0,0.24049831]
[1728664398972,0.04809178,62381.0,62375.0,0.24549831]
[1728664399199,0.00082,62382.0,62375.0,0.24549831]
[1728664399407,0.00082,62382.0,62375.0,0.24949831]
[1728664399647,0.00082,62382.0,62375.0,0.24549831]
[1728664399855,0.04809178,62381.0,62375.0,0.24549831]
[1728664400064,0.04809178,62381.0,62375.0,0.25649831]
[1728664400278,0.161123,62382.0,62375.0,0.24549831]
[1728664400513,0.04809178,62381.0,62375.0,0.24549831]
[1728664400740,0.00082,62382.0,62375.0,0.24549831]
[1728664400993,0.04809178,62381.0,62375.0,0.24049831]
[1728664401227,0.04809178,62381.0,62375.0,0.24449831]